bitfinex-derivatives/quotes_BTCF0:USTF0_20241110
["timestamp","ask_amount","ask_price","bid_price","bid_amount"]
[1731272250448,0.063082,79210.0,79200.0,0.18156615]
[1731272250658,0.02828472,79205.0,79200.0,0.18156615]
[1731272250949,0.02828472,79205.0,79201.0,0.18864066]
[1731272250950,0.01977636,79204.0,79201.0,0.18864066]
[1731272251344,0.09137272,79202.0,79201.0,0.18864066]
[1731272251649,0.09137272,79202.0,79201.0,0.18874472]
[1731272251856,0.11117255,79202.0,79201.0,0.18874472]
[1731272252354,0.11117255,79202.0,79201.0,0.00010406]
[1731272253752,0.11117255,79202.0,79172.0,0.02525124]
[1731272253753,0.063089,79201.0,79172.0,0.02525124]
[1731272253945,0.02780472,79174.0,79172.0,0.02525124]
[1731272254146,0.02780472,79173.0,79172.0,0.21427504]
[1731272254357,0.38860472,79173.0,79167.0,0.1890238]
[1731272254656,0.38860472,79173.0,79159.0,0.02525124]
[1731272254657,0.063118,79165.0,79159.0,0.02525124]
[1731272254858,0.02780472,79162.0,79159.0,0.02525124]
[1731272255060,0.02087729,79161.0,79160.0,0.18945302]
[1731272255245,0.02087729,79161.0,79160.0,0.00012744]
[1731272255444,0.40948201,79161.0,79160.0,0.00012744]
[1731272256653,0.56560201,79161.0,79160.0,0.00012744]
[1731272256956,0.40948201,79161.0,79160.0,0.00012744]
[1731272257158,0.38860472,79161.0,79160.0,0.00012744]
[1731272257355,0.3608,79161.0,79160.0,0.19025895]
[1731272260064,9.076e-05,79165.0,79164.0,0.063118]
[1731272260557,0.02789548,79165.0,79164.0,0.25290062]
[1731272261466,0.0059,79184.0,79164.0,1.05911725]
[1731272261760,0.3608,79186.0,79183.0,0.18156615]
[1731272261963,0.3608,79186.0,79176.0,0.18156615]
[1731272262262,0.3608,79186.0,79184.0,0.1895979]
[1731272262263,0.423902,79186.0,79184.0,0.1895979]
[1731272262457,0.423902,79186.0,79177.0,0.1895979]
[1731272262458,0.063105,79181.0,79177.0,0.1895979]
[1731272262761,0.3608,79178.0,79175.0,0.18880895]
[1731272263149,0.3608,79178.0,79174.0,0.02524921]
[1731272263355,0.3608,79178.0,79175.0,0.18880895]
[1731272264561,0.3608,79178.0,79176.0,0.18156615]
[1731272264864,0.3608,79178.0,79177.0,0.1889121]
[1731272265164,0.00016337,79180.0,79177.0,0.1889121]
[1731272265658,0.00016337,79180.0,79178.0,0.063107]
[1731272266158,0.00016337,79180.0,79179.0,0.18877778]
[1731272266760,0.00016337,79180.0,79179.0,0.54957778]
[1731272267156,0.3608,79194.0,79179.0,0.92845778]
[1731272267463,0.1562,79204.0,79193.0,0.18156615]
[1731272267865,0.3608,79199.0,79194.0,0.18876546]
[1731272270364,0.3608,79199.0,79194.0,0.25185946]
[1731272271159,0.3608,79199.0,79198.0,0.063091]
[1731272271355,0.00189423,79215.0,79195.0,0.56696526]
[1731272271559,0.1562,79228.0,79217.0,0.063075]
[1731272271763,0.1562,79228.0,79217.0,0.18156615]
[1731272272061,0.1562,79228.0,79218.0,0.19047021]
[1731272272457,0.3608,79225.0,79224.0,0.00015275]
[1731272272657,0.42387,79225.0,79224.0,0.00015275]
[1731272272869,0.42399172,79225.0,79224.0,0.00015275]
[1731272274073,0.063079,79213.0,79207.0,0.3608]
[1731272274954,0.063081,79211.0,79208.0,0.00015617]
[1731272277567,0.01989672,79210.0,79208.0,0.00015617]
[1731272277757,0.7216,79214.0,79208.0,0.00015617]
[1731272277758,0.01989672,79209.0,79208.0,0.00015617]
[1731272277963,0.7216,79214.0,79208.0,0.00015617]
[1731272278159,0.01989585,79213.0,79208.0,0.00015617]
[1731272278472,0.01989585,79212.0,79208.0,0.00015617]
[1731272278766,0.01989585,79211.0,79208.0,0.00015617]
[1731272278976,0.7216,79214.0,79208.0,0.00015617]
[1731272278977,0.01989585,79213.0,79208.0,0.00015617]
[1731272279270,0.3608,79214.0,79213.0,0.063079]
[1731272279773,0.3608,79214.0,79213.0,0.25155152]
[1731272280165,0.3608,79214.0,79213.0,0.18847252]
[1731272280359,0.3608,79214.0,79208.0,0.00015617]
[1731272280761,0.063082,79210.0,79208.0,0.00015617]
[1731272280965,0.06761541,79209.0,79208.0,0.00015617]
[1731272281564,0.35675541,79214.0,79208.0,0.19059918]
[1731272281870,0.0083991,79213.0,79211.0,0.063081]
[1731272282063,0.0439,79221.0,79215.0,0.063077]
[1731272282457,0.0439,79221.0,79216.0,0.19044301]
[1731272282662,0.3608,79218.0,79216.0,0.19044301]
[1731272283057,0.3608,79218.0,79212.0,0.18834133]
[1731272283373,0.3608,79218.0,79217.0,0.18834133]
[1731272283678,0.106974,79221.0,79213.0,0.19047435]
[1731272283968,0.063076,79218.0,79217.0,0.19047435]
[1731272284177,0.063077,79216.0,79208.0,0.00015617]
[1731272284371,0.063077,79216.0,79213.0,0.19047435]
[1731272284561,0.063077,79216.0,79208.0,0.00015617]
[1731272284770,0.063077,79216.0,79176.0,0.00061]
[1731272284771,0.54236615,79209.0,79176.0,0.00061]
[1731272284975,0.063105,79181.0,79176.0,0.00061]
[1731272285173,0.3608,79184.0,79179.0,0.188218]
[1731272285174,0.423903,79184.0,79179.0,0.188218]
[1731272285367,0.063104,79182.0,79179.0,0.188218]
[1731272285783,0.063105,79181.0,79180.0,0.00010644]
[1731272286577,0.441985,79181.0,79180.0,0.00010644]
[1731272286875,0.063114,79169.0,79168.0,0.02587326]
[1731272287066,0.423914,79169.0,79152.0,0.063128]
[1731272287376,0.3608,79162.0,79160.0,0.18947259]
[1731272287576,0.3608,79162.0,79156.0,0.02525569]
[1731272287877,0.3608,79162.0,79161.0,0.19063961]
[1731272288069,0.3608,79162.0,79161.0,0.00013631]
[1731272288376,0.3608,79162.0,79161.0,0.19063961]
[1731272289377,0.3608,79162.0,79161.0,0.21704717]
[1731272289882,0.42392,79162.0,79161.0,0.21704717]
[1731272290374,0.42392,79162.0,79161.0,0.00013631]
[1731272292070,0.4442414,79162.0,79161.0,0.00013631]
[1731272292267,0.3811214,79162.0,79161.0,0.00013631]
[1731272292668,0.3608,79162.0,79161.0,0.00013631]
[1731272293676,0.3608,79162.0,79161.0,0.18898009]
[1731272293880,0.02091565,79162.0,79161.0,0.18898009]
[1731272294079,0.42391,79175.0,79161.0,0.18898009]
[1731272294273,0.42391,79175.0,79168.0,0.18156615]
[1731272294274,0.02091552,79174.0,79168.0,0.18156615]
[1731272294577,0.02091552,79174.0,79169.0,0.19043661]
[1731272295382,0.02091552,79174.0,79172.0,0.063112]
[1731272295573,0.00991513,79174.0,79172.0,0.063112]
[1731272295771,0.00991513,79174.0,79173.0,0.18889488]
[1731272296187,0.00011979,79181.0,79180.0,0.063106]
[1731272296480,0.00011979,79181.0,79180.0,0.24467215]
[1731272296669,0.00011979,79181.0,79180.0,0.43498181]
[1731272297771,0.00011979,79181.0,79180.0,0.37187581]
[1731272299094,0.00011979,79181.0,79180.0,0.39811817]
[1731272300381,0.00011979,79181.0,79180.0,0.46122417]
[1731272300597,0.00011979,79181.0,79180.0,0.39811817]
[1731272300880,0.00011979,79181.0,79180.0,0.21655202]
[1731272300881,0.06322479,79181.0,79180.0,0.21655202]
[1731272301984,0.063112,79173.0,79162.0,0.40706]
[1731272302186,0.063112,79173.0,79162.0,0.4053]
[1731272302484,0.063112,79173.0,79165.0,0.19004091]
[1731272302682,0.063112,79173.0,79163.0,0.37160706]
[1731272302982,0.063112,79173.0,79166.0,0.18942572]
[1731272303286,0.063112,79173.0,79165.0,0.18942572]
[1731272303486,0.063112,79173.0,79167.0,0.18942572]
[1731272303681,0.063112,79173.0,79164.0,0.1882292]
[1731272303984,0.063112,79173.0,79168.0,0.1882292]
[1731272304186,0.063112,79173.0,79165.0,0.1882292]
[1731272304482,0.063112,79173.0,79169.0,0.1882292]
[1731272304686,0.063114,79170.0,79169.0,0.1882292]
[1731272304878,0.063114,79170.0,79162.0,0.0261482]
[1731272304879,0.063116,79167.0,79162.0,0.0261482]
[1731272305080,0.063116,79167.0,79156.0,0.063124]
[1731272305285,0.3608,79172.0,79163.0,0.18823459]
[1731272305487,0.3608,79164.0,79162.0,0.18823459]
[1731272305785,0.0453,79180.0,79162.0,0.18823459]
[1731272305786,0.3608,79179.0,79171.0,0.063112]
[1731272306189,0.02142909,79178.0,79172.0,0.18881136]
[1731272306388,0.063111,79174.0,79172.0,0.18881136]
[1731272306577,0.063111,79174.0,79171.0,0.02573766]
[1731272306578,0.02257654,79173.0,79171.0,0.02573766]
[1731272306776,0.02257654,79173.0,79161.0,0.00013631]
[1731272306777,0.08568854,79172.0,79161.0,0.00013631]
[1731272306990,0.3608,79177.0,79161.0,0.00013631]
[1731272306991,0.063117,79167.0,79161.0,0.00013631]
[1731272307193,0.063117,79167.0,79162.0,0.19060362]
[1731272307194,0.02257654,79166.0,79162.0,0.19060362]
[1731272307388,0.38337654,79166.0,79162.0,0.19060362]
[1731272307590,0.02257654,79165.0,79162.0,0.19060362]
[1731272307887,0.063118,79164.0,79162.0,0.19060362]
[1731272308086,0.02257654,79163.0,79162.0,0.19060362]
[1731272308287,0.063118,79164.0,79162.0,0.19060362]
[1731272308477,0.02438913,79163.0,79162.0,0.19060362]
[1731272309393,0.37896,79162.0,79147.0,0.00189487]
[1731272309590,0.3608,79149.0,79147.0,0.00189487]
[1731272309886,0.02438913,79148.0,79147.0,0.00189487]
[1731272310298,0.02438913,79148.0,79147.0,0.21761207]
[1731272310485,0.3608,79149.0,79147.0,0.19249583]
[1731272310682,0.423931,79149.0,79147.0,0.19249583]
[1731272311000,0.02274797,79148.0,79147.0,0.00205325]
[1731272311181,0.02274797,79148.0,79147.0,0.00015838]
[1731272312685,0.07284797,79148.0,79147.0,0.00015838]
[1731272315088,0.07284797,79148.0,79123.0,0.00189589]
[1731272315293,0.3608,79137.0,79123.0,0.00189589]
[1731272315600,0.02274797,79136.0,79124.0,0.18961654]
[1731272315789,0.08588897,79136.0,79124.0,0.18961654]
[1731272315985,0.02274797,79135.0,79125.0,0.00013583]
[1731272316183,0.063146,79129.0,79125.0,0.00013583]
[1731272316385,0.02274797,79128.0,79126.0,0.18948053]
[1731272316589,0.02301174,79127.0,79126.0,0.18948053]
[1731272318093,0.3608,79135.0,79126.0,0.18948053]
[1731272318294,0.3608,79128.0,79126.0,0.18948053]
[1731272318694,0.063148,79127.0,79126.0,0.18948053]
[1731272318891,0.0851803,79127.0,79126.0,0.18948053]
[1731272319195,0.31464111,79127.0,79125.0,0.00013583]
[1731272319502,0.31464111,79127.0,79084.0,0.00189727]
[1731272319503,0.063182,79085.0,79084.0,0.00189727]
[1731272319691,0.063192,79072.0,79067.0,0.00189768]
[1731272319993,0.063192,79072.0,79069.0,0.18886781]
[1731272319994,0.02165819,79071.0,79069.0,0.18886781]
[1731272320303,0.02161177,79070.0,79069.0,0.18886781]
[1731272320489,0.3608,79073.0,79069.0,0.18902852]
[1731272321204,0.423991,79073.0,79069.0,0.18902852]
[1731272322100,0.35017306,79073.0,79069.0,0.18902852]
[1731272325206,0.41336406,79073.0,79069.0,0.18902852]
[1731272325391,0.35017306,79073.0,79069.0,0.18902852]
[1731272326002,0.3608,79085.0,79072.0,0.3608]
[1731272326309,0.3608,79085.0,79073.0,0.18927274]
[1731272326500,0.06319,79075.0,79073.0,0.18927274]
[1731272328298,0.3608,79076.0,79073.0,0.18927274]
[1731272328501,0.3608,79076.0,79070.0,0.19077542]
[1731272328699,0.3608,79076.0,79074.0,0.19035314]
[1731272329005,0.3608,79076.0,79071.0,0.19035314]
[1731272329206,0.3608,79076.0,79075.0,0.19035314]
[1731272329403,0.3608,79076.0,79072.0,0.19035314]
[1731272329900,0.3608,79076.0,79075.0,0.18899781]
[1731272330096,0.3608,79076.0,79073.0,0.25218881]
[1731272330298,0.3608,79085.0,79075.0,0.18899781]
[1731272330601,0.3608,79085.0,79075.0,0.18156615]
[1731272330808,0.3608,79085.0,79076.0,0.18913437]
[1731272331904,0.423982,79085.0,79076.0,0.18913437]
[1731272332305,0.063185,79082.0,79076.0,0.18913437]
[1731272332503,0.3608,79077.0,79076.0,0.18913437]
[1731272332704,0.3608,79077.0,79075.0,0.19043135]
[1731272332903,0.3608,79077.0,79076.0,0.19043135]
[1731272333295,0.3608,79077.0,79069.0,0.06335471]
[1731272333296,0.3608,79077.0,79074.0,0.19043135]
[1731272333496,0.3608,79077.0,79076.0,0.19043135]
[1731272333702,0.3608,79077.0,79070.0,0.063193]
[1731272333900,0.3608,79077.0,79075.0,0.18949647]
[1731272334098,0.3608,79077.0,79076.0,0.37106262]
[1731272334300,0.3608,79077.0,79076.0,0.18156615]
[1731272334502,0.3608,79077.0,79076.0,0.37106262]
[1731272335104,0.3608,79077.0,79076.0,0.43425162]
[1731272335414,0.0018972,79089.0,79078.0,0.063187]
[1731272335713,0.0018972,79089.0,79079.0,0.18961759]
[1731272335910,0.063184,79083.0,79079.0,0.18961759]
[1731272336207,0.063184,79082.0,79079.0,0.02476593]
[1731272336506,0.3608,79100.0,79076.0,0.54412615]
[1731272336507,0.06317,79099.0,79087.0,0.06318]
[1731272336701,0.3608,79104.0,79080.0,0.55041759]
[1731272336903,0.3608,79104.0,79088.0,0.18958462]
[1731272337104,0.063176,79092.0,79084.0,0.18156615]
[1731272337504,0.15588,79099.0,79089.0,0.18958462]
[1731272337806,0.063176,79093.0,79088.0,0.3608]
[1731272338011,0.063178,79090.0,79088.0,0.3608]
[1731272338208,0.063178,79090.0,79089.0,0.18899882]
[1731272339102,0.15588,79099.0,79089.0,0.18899882]
[1731272339299,0.063176,79093.0,79089.0,0.18899882]
[1731272339504,0.063175,79094.0,79089.0,0.18899882]
[1731272339807,0.063177,79092.0,79089.0,0.18899882]
[1731272340210,0.3608,79100.0,79089.0,0.18899882]
[1731272340412,0.063165,79106.0,79094.0,0.18156615]
[1731272340603,0.01813237,79105.0,79094.0,0.18156615]
[1731272340906,0.01813237,79104.0,79095.0,0.18859147]
[1731272341109,0.01813237,79103.0,79095.0,0.18859147]
[1731272341299,0.063167,79104.0,79095.0,0.18859147]
[1731272341500,0.3608,79109.0,79098.0,0.3608]
[1731272341716,0.01821672,79108.0,79098.0,0.3608]
[1731272341904,0.063169,79101.0,79099.0,0.18846102]
[1731272342306,0.3608,79109.0,79099.0,0.18846102]
[1731272342507,0.01826272,79108.0,79099.0,0.18846102]
[1731272342703,0.06317,79100.0,79099.0,0.18846102]
[1731272342906,0.54236615,79109.0,79084.0,0.063182]
[1731272343107,0.063172,79097.0,79084.0,0.063182]
[1731272343308,0.063175,79094.0,79092.0,0.19048772]
[1731272343504,0.063175,79094.0,79085.0,0.19048772]
[1731272343807,0.063175,79094.0,79083.0,0.3608]
[1731272343808,0.063175,79094.0,79093.0,0.19030813]
[1731272344216,0.3608,79102.0,79083.0,0.3608]
[1731272344518,0.02054149,79101.0,79087.0,0.19030813]
[1731272344816,0.02054149,79100.0,79083.0,0.3608]
[1731272345007,0.3608,79088.0,79078.0,0.00189666]
[1731272345308,0.063186,79080.0,79079.0,0.19057062]
[1731272345513,0.08372749,79080.0,79079.0,0.19057062]
[1731272346398,0.13378452,79080.0,79079.0,0.11941915]
[1731272346606,0.08372749,79080.0,79079.0,0.11941915]
[1731272347903,0.13399003,79080.0,79079.0,0.11941915]
[1731272348610,0.063188,79077.0,79069.0,0.00016071]
[1731272348805,0.13399303,79076.0,79069.0,0.00016071]
[1731272349004,0.13360893,79075.0,79070.0,0.1885617]
[1731272349206,0.00013042,79071.0,79069.0,0.02503212]
[1731272349406,0.07048707,79070.0,79069.0,0.00016071]
[1731272349916,0.07737372,79070.0,79069.0,0.19092445]
[1731272350415,0.1273193,79070.0,79069.0,0.21579083]
[1731272351508,0.07048707,79070.0,79069.0,0.21579083]
[1731272351915,0.00013042,79071.0,79069.0,0.21579083]
[1731272352110,0.00013042,79071.0,79070.0,0.3608]
[1731272353116,0.05025717,79071.0,79070.0,0.55081786]
[1731272353311,0.06978329,79071.0,79070.0,0.55081786]
[1731272353504,0.01965654,79071.0,79070.0,0.55081786]
[1731272356506,0.00013042,79071.0,79070.0,0.55081786]
[1731272356914,0.01837291,79071.0,79070.0,0.55081786]
[1731272357518,0.01837291,79071.0,79069.0,0.02502709]
[1731272357717,0.08143649,79070.0,79069.0,0.02502709]
[1731272359323,0.063194,79070.0,79069.0,0.02502709]
[1731272360014,0.08148208,79070.0,79069.0,0.02502709]
[1731272361423,0.51448571,79070.0,79069.0,0.02502709]
[1731272362623,0.51448571,79070.0,79043.0,0.02529704]
[1731272362624,0.39768808,79070.0,79043.0,0.02529704]
[1731272362818,0.063206,79054.0,79039.0,0.24494838]
[1731272363422,0.12233662,79054.0,79039.0,0.24494838]
[1731272363726,0.12233662,79054.0,79051.0,8.977e-05]
[1731272363925,0.12233662,79054.0,79012.0,0.00168]
[1731272363926,0.063231,79023.0,79012.0,0.00168]
[1731272364233,0.96574381,79054.0,79009.0,0.3608]
[1731272364234,0.063237,79016.0,79009.0,0.3608]
[1731272364416,0.063237,79016.0,79015.0,0.07618931]
[1731272364616,0.13567254,79016.0,79015.0,0.26661139]
[1731272364919,0.13567254,79016.0,79015.0,0.07631602]
[1731272365319,0.13567254,79016.0,79009.0,0.34849863]
[1731272365523,0.21654118,79015.0,79009.0,0.34849863]
[1731272365816,0.00010342,79017.0,79010.0,0.18886426]
[1731272365817,0.35292091,79014.0,79010.0,0.18886426]
[1731272366023,0.21654118,79013.0,79010.0,0.18886426]
[1731272366217,0.35292091,79012.0,79010.0,0.18886426]
[1731272366526,0.21654118,79011.0,79010.0,0.18886426]
[1731272366730,0.21654118,79011.0,79010.0,0.18896888]
[1731272367225,0.21654118,79011.0,79010.0,0.18196888]
[1731272369024,0.10124858,79011.0,79010.0,0.18196888]
[1731272369429,0.1152926,79011.0,79010.0,0.18196888]
[1731272369731,0.21654118,79011.0,79010.0,0.18196888]
[1731272369935,0.1152926,79011.0,79010.0,0.18196888]
[1731272370230,0.21654118,79011.0,79010.0,0.00010462]
[1731272370427,0.10124858,79011.0,79010.0,0.18895953]
[1731272370629,0.1152926,79011.0,79010.0,0.18895953]
[1731272370935,0.00010342,79017.0,79013.0,0.063238]
[1731272371128,0.00010342,79017.0,79016.0,0.3608]
[1731272371328,0.10781755,79017.0,79016.0,0.3608]
[1731272371535,0.10781755,79017.0,79016.0,0.55164992]
[1731272372034,0.10781755,79017.0,79011.0,0.0852]
[1731272372227,0.10771413,79016.0,79011.0,0.0852]
[1731272372434,0.10771413,79015.0,79012.0,0.18870147]
[1731272372631,0.10771413,79014.0,79012.0,0.18870147]
[1731272372934,0.10771413,79013.0,79012.0,0.18870147]
[1731272373534,0.10771413,79013.0,79011.0,0.19091186]
[1731272373834,0.10771413,79012.0,79010.0,0.06334562]
[1731272374142,0.07157945,79011.0,79010.0,0.06334562]
[1731272374331,0.00010342,79017.0,79010.0,0.06334562]
[1731272374332,0.00010342,79017.0,79013.0,0.063239]
[1731272374526,0.00010342,79017.0,79016.0,0.3608]
[1731272375031,0.00010342,79017.0,79016.0,0.55050823]
[1731272376429,0.11746416,79017.0,79016.0,0.55050823]
[1731272379737,0.11740836,79017.0,79016.0,0.55050823]
[1731272380742,0.11740836,79017.0,79016.0,0.3608]
[1731272381339,0.11740836,79017.0,79016.0,0.22156714]
[1731272381642,4.762e-05,79017.0,79016.0,0.59705351]
[1731272381941,0.13050638,79027.0,79016.0,0.59705351]
[1731272382141,0.11034446,79026.0,79016.0,0.53381651]
[1731272382542,0.2073364,79025.0,79016.0,0.53381651]
[1731272382743,0.2073364,79024.0,79019.0,0.063234]
[1731272382934,0.00011272,79027.0,79019.0,0.063234]
[1731272382935,0.20590023,79023.0,79019.0,0.063234]
[1731272383130,0.20590023,79022.0,79020.0,0.1893588]
[1731272383338,0.20445667,79021.0,79020.0,0.1893588]
[1731272383636,0.20453321,79024.0,79017.0,0.1893588]
[1731272383836,0.063233,79021.0,79020.0,0.1893588]
[1731272384043,0.063234,79020.0,79017.0,0.19064788]
[1731272384346,0.12136193,79024.0,79016.0,0.22156714]
[1731272384347,0.063235,79018.0,79016.0,0.22156714]
[1731272384540,0.10868688,79017.0,79016.0,0.22156714]
[1731272384738,0.20428508,79017.0,79016.0,0.22156714]
[1731272384943,0.20428508,79017.0,79016.0,0.41105962]
[1731272385752,0.20428508,79017.0,79016.0,0.22156714]
[1731272386049,0.063238,79014.0,79013.0,0.3608]
[1731272386239,0.17192488,79014.0,79013.0,0.3608]
[1731272386433,0.5196362,79014.0,79013.0,0.19035386]
[1731272386647,0.5196362,79014.0,79010.0,0.00010462]
[1731272386648,0.063241,79011.0,79010.0,0.00010462]
[1731272386841,0.26752608,79011.0,79010.0,0.00010462]
[1731272387235,0.28756443,79011.0,79010.0,0.00010462]
[1731272387751,0.26752608,79011.0,79010.0,0.00010462]
[1731272388354,0.28623257,79011.0,79010.0,0.00010462]
[1731272388645,0.40578174,79011.0,79010.0,0.00010462]
[1731272388948,0.40577377,79011.0,79010.0,0.00010462]
[1731272389349,0.063249,79001.0,78999.0,0.34778928]
[1731272389549,0.21740492,79000.0,78999.0,0.34778928]
[1731272389739,0.21740492,79000.0,78999.0,0.43581332]
[1731272389935,0.21740492,79000.0,78999.0,0.62679464]
[1731272390447,0.21740492,79000.0,78999.0,0.62688347]
[1731272390649,0.19869843,79000.0,78999.0,0.62688347]
[1731272390951,0.1626562,79000.0,78999.0,0.62688347]
[1731272391651,0.09290581,79000.0,78999.0,0.62688347]
[1731272391853,0.03264014,79000.0,78999.0,0.8164869]
[1731272392046,0.063237,79016.0,79001.0,0.063248]
[1731272392246,0.063237,79016.0,79004.0,0.12136193]
[1731272392653,0.063237,79016.0,79005.0,0.18964947]
[1731272392951,0.063237,79016.0,79006.0,0.3608]
[1731272393152,0.3608,79021.0,79013.0,0.3608]
[1731272393542,0.12131007,79020.0,79014.0,0.18922997]
[1731272394254,0.12131007,79020.0,79014.0,0.25246797]
[1731272394553,0.11972061,79020.0,79014.0,0.25246797]
[1731272394847,0.11972061,79020.0,79016.0,0.12136193]
[1731272395051,0.11972061,79020.0,79017.0,0.063236]
[1731272395251,0.18294961,79026.0,79017.0,0.25238459]
[1731272395552,0.13641732,79025.0,79017.0,0.25238459]
[1731272395743,0.10056874,79024.0,79017.0,0.25238459]
[1731272395944,0.10056874,79023.0,79017.0,0.25238459]
[1731272396144,0.10056874,79023.0,79017.0,0.18914859]
[1731272396145,0.10056874,79022.0,79017.0,0.18914859]
[1731272396673,0.10056874,79022.0,79015.0,0.18972626]
[1731272396857,0.063237,79016.0,79015.0,0.18972626]
[1731272397154,0.063243,79009.0,79007.0,0.18896446]
[1731272397360,0.10056874,79008.0,79007.0,0.18896446]
[1731272397546,0.10056874,79008.0,79006.0,0.03196459]
[1731272397748,0.10056874,79007.0,78998.0,0.18461293]
[1731272398058,0.10056874,79006.0,79004.0,0.12136193]
[1731272398356,0.10056874,79005.0,79004.0,0.12136193]
[1731272398753,0.10056874,79005.0,79004.0,0.31012445]
[1731272399554,0.10056874,79005.0,79004.0,0.33543909]
[1731272399855,0.063242,79010.0,79004.0,0.33543909]
[1731272400059,0.18395341,79009.0,79004.0,0.33543909]
[1731272400245,0.10056874,79008.0,79004.0,0.33543909]
[1731272400446,0.18395341,79008.0,79004.0,0.33543909]
[1731272400649,0.063245,79006.0,79005.0,0.3608]
[1731272400956,0.18395341,79006.0,79005.0,0.19094049]
[1731272401151,0.24719841,79006.0,79005.0,0.19094049]
[1731272401351,0.063247,79003.0,79002.0,0.03177625]
[1731272401549,0.063249,79001.0,78999.0,0.36088883]
[1731272401752,0.17840369,79000.0,78999.0,8.883e-05]
[1731272402257,0.17840369,79000.0,78999.0,0.22100131]
[1731272402555,0.08338467,79000.0,78999.0,0.18894745]
[1731272402952,0.04930667,79000.0,78999.0,0.18894745]
[1731272403159,0.16016,79017.0,78999.0,0.18894745]
[1731272403344,0.09487768,79016.0,79011.0,0.12136193]
[1731272403549,0.0857,79026.0,79011.0,0.12136193]
[1731272403762,0.01688578,79025.0,79012.0,0.18941246]
[1731272403946,0.063232,79022.0,79012.0,0.18941246]
[1731272404147,0.08011878,79021.0,79012.0,0.18941246]
[1731272404354,0.0857,79026.0,79012.0,0.18941246]
[1731272404557,0.063238,79015.0,79012.0,0.18941246]
[1731272404751,0.11069473,79014.0,79009.0,0.1891159]
[1731272404958,0.0940381,79013.0,79008.0,0.3608]
[1731272405163,0.09403571,79012.0,79010.0,0.19091884]
[1731272405463,0.063238,79015.0,79009.0,0.19091884]
[1731272405655,0.11046223,79014.0,79007.0,0.3608]
[1731272405859,0.09402978,79013.0,79011.0,0.19091884]
[1731272406056,0.063238,79015.0,79010.0,0.19091884]
[1731272406361,0.063238,79015.0,79012.0,0.19056073]
[1731272406556,0.0926391,79014.0,79011.0,0.19056073]
[1731272406760,0.10926176,79013.0,79012.0,0.12136193]
[1731272406950,0.09263914,79013.0,79012.0,0.37341896]
[1731272407155,0.09263914,79013.0,79012.0,0.18460193]
[1731272407562,0.12136193,79025.0,79012.0,0.18881703]
[1731272407865,0.10859485,79024.0,79012.0,0.18881703]
[1731272408060,0.063238,79014.0,79012.0,0.18881703]
[1731272408365,0.063234,79020.0,79012.0,0.18881703]
[1731272408556,0.10860139,79019.0,79016.0,0.12136193]
[1731272408860,0.05253556,79018.0,79017.0,0.25375946]
[1731272409052,0.00011272,79027.0,79023.0,0.063231]
[1731272409253,0.00011272,79027.0,79026.0,0.48216193]
[1731272409760,0.00011272,79027.0,79026.0,0.19052346]
[1731272409959,0.01542025,79027.0,79014.0,0.48384193]
[1731272410152,0.063241,79011.0,79001.0,0.0823]
[1731272410360,0.3608,79015.0,79005.0,0.12136193]
[1731272410661,0.3608,79015.0,79012.0,0.18896935]
[1731272410854,0.3608,79023.0,79013.0,0.0861]
[1731272411059,0.3608,79023.0,79013.0,0.27531725]
[1731272411255,0.01783932,79022.0,79013.0,0.0861]
[1731272411459,0.01783932,79021.0,79013.0,0.0861]
[1731272411655,0.01783932,79020.0,79014.0,0.18921725]
[1731272411960,0.01783932,79019.0,79014.0,0.18921725]
[1731272412166,0.01783932,79018.0,79014.0,0.18921725]
[1731272412365,0.01783932,79017.0,79014.0,0.18921725]
[1731272412666,0.3608,79023.0,79016.0,0.12136193]
[1731272412857,0.01741184,79022.0,79016.0,0.12136193]
[1731272413058,0.3608,79023.0,79017.0,0.18922646]
[1731272413763,0.3608,79023.0,79019.0,0.063234]
[1731272413958,0.00011272,79027.0,79022.0,0.12136193]
[1731272414164,0.0059,79039.0,79026.0,0.3608]
[1731272414466,0.0059,79048.0,79046.0,0.063212]
[1731272414659,0.0059,79067.0,79050.0,0.063209]
[1731272414858,0.3608,79070.0,79058.0,0.3608]
[1731272415056,0.0869,79078.0,79058.0,0.3608]
[1731272415057,0.081,79078.0,79069.0,0.12136193]
[1731272415258,0.063183,79084.0,79077.0,0.00015788]
[1731272415561,0.00012187,79078.0,79077.0,0.00015788]
[1731272416058,0.00012187,79078.0,79077.0,0.18952062]
[1731272417155,0.06330887,79078.0,79077.0,0.22035011]
[1731272417770,0.00012187,79078.0,79077.0,0.22035011]
[1731272418157,0.00012187,79078.0,79077.0,0.28353811]
[1731272418760,0.00012187,79078.0,79077.0,0.22035011]
[1731272419065,0.4822838,79078.0,79077.0,0.22035011]
[1731272419261,0.063202,79060.0,79051.0,0.36374598]
[1731272419462,0.063205,79057.0,79051.0,0.3608]
[1731272419668,0.063205,79057.0,79056.0,0.18968245]
[1731272420267,0.063205,79057.0,79056.0,0.18978636]
[1731272421861,0.424005,79057.0,79056.0,0.00010391]
[1731272422069,0.063208,79052.0,79051.0,0.03151156]
[1731272422274,0.0804,79056.0,79040.0,0.12325952]
[1731272422572,0.063216,79042.0,79041.0,0.18909948]
[1731272423163,0.063216,79042.0,79041.0,0.21450273]
[1731272424257,0.063216,79042.0,79041.0,0.18920402]
[1731272424462,0.08028962,79042.0,79041.0,0.18920402]
[1731272425672,0.3608,79064.0,79041.0,0.56876402]
[1731272425874,0.063204,79058.0,79054.0,0.3608]
[1731272426069,0.0307227,79065.0,79050.0,0.3608]
[1731272426070,0.3608,79063.0,79050.0,0.3608]
[1731272426366,0.063205,79056.0,79055.0,0.1888902]
[1731272426569,0.063208,79052.0,79051.0,0.1888902]
[1731272426777,0.063215,79044.0,79042.0,0.1888902]
[1731272427074,0.063208,79052.0,79051.0,0.18854583]
[1731272427276,0.06321,79049.0,79045.0,0.12136193]
[1731272427474,0.063212,79048.0,79045.0,0.12136193]
[1731272427667,0.063212,79048.0,79046.0,0.18854583]
[1731272428468,0.063213,79047.0,79042.0,0.19061955]
[1731272428673,0.3608,79059.0,79041.0,0.00010454]
[1731272428674,0.063216,79043.0,79041.0,0.00010454]
[1731272429173,0.063216,79043.0,79042.0,0.18898131]
[1731272430371,0.51728,79051.0,79042.0,0.18898131]
[1731272430570,0.063211,79048.0,79042.0,0.31024654]
[1731272431371,0.3608,79052.0,79044.0,0.063214]
[1731272431573,0.063203,79059.0,79050.0,0.12126523]
[1731272431775,0.15648,79065.0,79054.0,0.3608]
[1731272431970,0.063205,79056.0,79054.0,0.3608]
[1731272432177,0.3608,79061.0,79048.0,0.19046371]
[1731272432365,0.12126523,79057.0,79047.0,0.3608]